Cogmind - Beta 16 @@@ ROGUE MODE // 2026.01.04 @ 19:44:48 Player: PE-P51 Result: Destroyed by 08-Q4D(R) with Subdweller Shrapnel Launcher Performance ------------- Evolutions (0) 0 Regions Visited (2) 400 Robots Destroyed (26) 130 Value Destroyed (751) 751 Prototype IDs (13) 260 Alien Tech Used (0) 0 Bonus (0) 0 TOTAL SCORE: 1541 Bonus ------- None Cogmind --------- Core Integrity 0/250 Matter 243/300 Energy 125/125 System Corruption 0% Temperature Cool (0) Movement Rolling (110) Location -10/Subcaves Parts ------- > --- POWER (1) -------- Light Ion Engine > --- PROPULSION (2) --- Subdweller Monowheel Subdweller Monowheel > --- UTILITY (2) ------ (None) > --- WEAPON (2) ------- Subdweller Machine Gun Subdweller Machine Gun > --- INVENTORY (5) ---- Subdweller Power Source Huge Storage Unit Rocket Launcher Subdweller Shrapnel Launcher Scrap Shield Fragment (41) Peak State ------------ > --- POWER ------------ Light Ion Engine Subdweller Power Source > --- PROPULSION ------- Subdweller Monowheel Subdweller Monowheel Subdweller Monowheel Subdweller Monowheel > --- UTILITY ---------- Scrap Shield Tower Shield > --- WEAPON ----------- Battle Rifle Subdweller Machine Gun Barrage Gun Battle Cannon > --- INVENTORY -------- Huge Storage Unit Rocket Launcher Mining Laser Scrap Shield Fragment Scrap Shield Fragment [Rating: 44] Favorites ----------- Power Light Ion Engine Engine Light Ion Engine Propulsion Subdweller Monowheel Leg Aluminum Leg Wheel Subdweller Monowheel Utility Scrap Shield Device Sensor Array Storage Small Storage Unit Protection Scrap Shield Weapon Subdweller Machine Gun Energy Gun Improved Medium Laser Ballistic Gun Subdweller Machine Gun Ballistic Cannon Battle Cannon Launcher Grenade Launcher Special Weapon Mining Laser Build | -11 -10 -10 ------- Run | Yrd Mat Sub Slots Evolved . | . . . Power . | . . . Propulsion . | . . . Utility . | . . . Weapon . | . . . Parts Attached 32 | . 9 23 Power 3 | . 1 2 Engine 3 | . 1 2 Core . | . . . Reactor . | . . . Propulsion 10 | . 1 9 Treads . | . . . Leg 1 | . 1 . Wheel 9 | . . 9 Hover . | . . . Flight . | . . . Utility 5 | . 3 2 Device 2 | . 2 . Storage 1 | . 1 . Processor . | . . . Hackware . | . . . Protection 2 | . . 2 Artifact . | . . . Weapon 14 | . 4 10 Energy Gun 3 | . 1 2 Energy Cannon . | . . . Ballistic Gun 7 | . 2 5 Ballistic Cannon 1 | . . 1 Launcher 2 | . 1 1 Special Weapon 1 | . . 1 Impact Weapon . | . . . Slashing Weapon . | . . . Piercing Weapon . | . . . Special Melee Weapon . | . . . Unidentified Prototypes 1 | . 1 . Parts Lost 3 | . . 3 Power . | . . . Propulsion 1 | . . 1 Utility 2 | . . 2 Weapon . | . . . Highest Loss Streak 1 | . . 1 To Critical Strikes . | . . . Average Backups 4 | . 7 3 Power . | . 1 . Propulsion . | . 2 . Utility 1 | . 1 1 Weapon 2 | . 2 1 Tool/Special . | . . . Unused Backups 17 | . 9 8 Power 3 | . 1 2 Propulsion 7 | . 6 1 Utility 4 | . 1 3 Weapon 2 | . 1 1 Tool/Special 1 | . . 1 Average Slot Usage (%) 84 | . 96 82 Engine 13 | . 14 13 Leg 5 | . 27 . Wheel 20 | . . 25 Device 2 | . 10 . Storage 2 | . 14 . Protection 10 | . . 12 Energy Gun 4 | . . 5 Ballistic Gun 19 | . 27 17 Ballistic Cannon 3 | . . 4 Peak Build Rating 44 | . 9 44 Average Rating 25 | . 6 30 On Entrance 6 | 6 6 8 Avg Prop Armor Cover (%) 1 | . . 1 Naked Turns . | . . . Heaviest Build 76 | 12 18 76 Greatest Support 60 | 20 20 60 Greatest Overweight (x) 9 | . . 9 Average Overweight (x) . | . . . Largest Inventory Capacity 10 | . 10 10 Average Capacity 5 | . 8 5 Most Carried 10 | . 8 10 Average Carried 5 | . 7 4 Final Capacity 10 | 8 10 5 Final Carried 8 | 6 8 5 Class Distribution -------------------- 47% | Subdweller-Tank 24% | Mutant 23% | Subdweller-Mutant 4% | Scavenger-Mutant Dominant Class ---------------- Mutant | -10/Materials Subdweller-Tank | -10/Subcaves Resources | -11 -10 -10 ----------- Run | Yrd Mat Sub Matter Collected 1459 | 200 184 1075 Remotely . | . . . Salvage Created 810 | . 114 696 Parts 63 | . 11 52 Haulers Intercepted 1 | . 1 . Recyclers Shooed . | . . . Parts Field Recycled . | . . . Retrieved Matter . | . . . Parts Self-Destructed 12 | . . 12 Prevented . | . . . Parts Restored . | . . . Kills | -11 -10 -10 ------- Run | Yrd Mat Sub Combat Hostiles Destroyed 22 | . 4 18 Guns 15 | . 1 14 Cannons 1 | . . 1 AOE 6 | . 3 3 Classes Destroyed 6 | . 4 2 Worker 1 | . 1 . Hauler 1 | . 1 . Turret 2 | . . 2 Swarmer 6 | . 3 3 Grunt 2 | . 1 1 Subdweller 14 | . . 14 Best Kill Streak 4 | . 4 4 Combat Bots Only 4 | . 3 4 Max Kills in Single Turn 3 | . 3 2 Gunslinging . | . . . Exploded 2 | . 2 2 Melee . | . . . Uniques/NPCs Destroyed . | . . . Combat | -11 -10 -10 -------- Run | Yrd Mat Sub Hostile Shots Fired 181 | . 17 164 Missed 64 | . 5 59 Hits 117 | . 12 105 Projectile 117 | . 12 105 AOE 1 | . . 1 Critical Strikes 3 | . . 3 Damage Taken 1838 | . 245 1593 Core 260 | . 27 233 Absorbed by Shields . | . . . Regen/Repaired (Parts) 79 | . 79 . Core Remaining (%) 100 | 100 . . Volleys Fired 124 | . 14 110 Largest 4 | . 2 4 Hottest 120 | . 40 120 Shots Fired 315 | . 24 291 Gun 247 | . 20 227 Cannon 49 | . . 49 Launcher 6 | . 4 2 Special 13 | . . 13 Kinetic 256 | . 20 236 Thermal 53 | . . 53 Explosive 6 | . 4 2 Electromagnetic . | . . . Robot Hit Streak 15 | . 5 15 Robot Miss Streak 3 | . 3 3 Penetration Max . | . . . Secondary Targets 2 | . . 2 Max Gunslinging Chain 1 | . . 1 Shots Hit Robots 138 | . 11 127 Core Hits 55 | . 12 43 Critical Kills . | . . . Critical Parts Destroyed . | . . . Critical Strikes 2 | . . 2 Burn 1 | . . 1 Destroy 1 | . . 1 Melee Attacks . | . . . Impact . | . . . Slashing . | . . . Piercing . | . . . Sneak Attacks . | . . . Combat Hostiles . | . . . Follow-up Attacks . | . . . Damage Inflicted 2828 | . 383 2445 Guns 2060 | . 112 1948 Cannons 335 | . . 335 Explosions 405 | . 243 162 Melee . | . . . Ramming 28 | . 28 . Kinetic 1900 | . 112 1788 Thermal 495 | . . 495 Explosive 405 | . 243 162 Electromagnetic . | . . . Impact . | . . . Slashing . | . . . Piercing . | . . . Highest Corruption . | . . . Average Corruption . | . . . Corruption Purged . | . . . Corruption Blocked . | . . . Overload Shots . | . . . Overflow Damage 49 | . 28 21 Projectiles . | . . . Explosions 49 | . 28 21 Melee . | . . . Knockbacks 4 | . 1 3 Impact 1 | . 1 . Kinetic 3 | . . 3 Secondary . | . . . Self-Inflicted Damage . | . . . Shots . | . . . Rammed . | . . . Targets Rammed 6 | . 6 . Kicked 6 | . 6 . Crushed . | . . . Highest Temperature 252 | . . 252 Average Temperature 25 | . . 25 Received Heat Transfer 633 | . 15 618 Siege Activations . | . . . Martial Activations . | . . . Shielding Activations . | . . . Robots Disrupted . | . . . Combat Hostiles . | . . . Robots Corrupted . | . . . Combat Hostiles . | . . . Parts Fried . | . . . Impact Corruptions . | . . . Robots Melted . | . . . Combat Hostiles . | . . . Parts Melted . | . . . Heat Transferred 1026 | . . 1026 Parts Sabotaged . | . . . Parts Stolen . | . . . Parts Stripped . | . . . Power Chain Reactions . | . . . Alert | -11 -10 -10 ------- Run | Yrd Mat Sub Maximum Alert Level . | . . . Low Security (%) 100 | . 100 . Level 1 . | . . . Level 2 . | . . . Level 3 . | . . . Level 4 . | . . . Level 5 . | . . . High Security . | . . . Max Security . | . . . Peak Influence 93 | . 93 . Initial . | . . . Average 13 | . 13 . Influence Increases 311 | . 146 165 Destroy 0b10 Robot/C 200 | . 80 120 Destroy 0b10 Robot/NC 10 | . 10 . Destroy Leader 12 | . 12 . Successful Hack 11 | . 11 . Destroy Structure 18 | . 18 . Lose Combat Pursuer 60 | . 15 45 Influence Decreases 311 | . 146 165 Time Decay 311 | . 146 165 Squads Dispatched . | . . . Investigation . | . . . Extermination . | . . . Reinforcement . | . . . Assault . | . . . Garrison . | . . . Intercept . | . . . Searches Triggered . | . . . Construction Impeded . | . . . Haulers Reinforced . | . . . Active Scanning Responses . | . . . Cargo Convoy Interrupts . | . . . Stealth | -11 -10 -10 --------- Run | Yrd Mat Sub Distress Signals . | . . . Communications Jammed . | . . . Distress Signals . | . . . Times Spotted 38 | . 13 25 Peak Tracking Total 6 | . 3 6 Tactical Retreats 2 | . 1 1 Traps | -11 -10 -10 ------- Run | Yrd Mat Sub Traps Triggered 4 | . 1 3 Indirectly . | . . . Trap Hack Attempts . | . . . Triggered . | . . . Disarmed . | . . . Reprogrammed 1 | . 1 . Reused . | . . . Traps Extracted . | . . . Installed . | . . . Triggered . | . . . Machines | -11 -10 -10 ---------- Run | Yrd Mat Sub Machines Disabled 3 | . . 3 Max in Single Turn 1 | . . 1 Machines Repaired . | . . . Machines Dismantled . | . . . Machines Sabotaged . | . . . Overloaded Fab Kills . | . . . Hacking | -11 -10 -10 --------- Run | Yrd Mat Sub Machines Accessed 11 | . 9 2 Terminals 8 | . 8 . Fabricators . | . . . Repair Stations 1 | . 1 . Recycling Units . | . . . Scanalyzers . | . . . Garrison Access . | . . . Total Hacks 31 | . 25 6 Successful 21 | . 15 6 Failed 10 | . 10 . Catastrophic . | . . . Database Lockouts . | . . . Manual 20 | . 20 . Terminals 23 | . 23 . Fabricators . | . . . Repair Stations 2 | . 2 . Recycling Units . | . . . Scanalyzers . | . . . Garrison Access . | . . . Terminal Hacks 10 | . 4 6 Record 5 | . . 5 Robot Analysis 1 | . 1 . Alert Level 1 | . 1 . Reprogram Traps 1 | . 1 . Zone Layout 1 | . 1 . Proto ID Catalog 1 | . . 1 Fabricator Hacks . | . . . Repair Station Hacks 2 | . 2 . Scan Component 1 | . 1 . Repair 1 | . 1 . Recycling Unit Hacks . | . . . Scanalyzer . | . . . Garrison Access Hacks . | . . . Unauthorized Hacks 9 | . 9 . Terminals 9 | . 9 . Botnet 6 | . 6 . Skim 3 | . 3 . Fabricators . | . . . Repair Stations . | . . . Recycling Units . | . . . Scanalyzers . | . . . Garrison Access . | . . . Data Cores Recovered . | . . . Used . | . . . Hacking Detections 8 | . 8 . Full Trace Events . | . . . Feedback Events . | . . . Feedback Blocked . | . . . Robot Schematics Acquired . | . . . Robots Built . | . . . Authchips . | . . . Time . | . . . Total Robot Build Rating . | . . . Part Schematics Acquired . | . . . Parts Built . | . . . Authchips . | . . . Time . | . . . Total Part Build Rating . | . . . Part Studies Acquired . | . . . Parts Repaired 1 | . 1 . Time 26 | . 26 . Parts Recycled . | . . . Recycled Matter . | . . . Retrieved Matter . | . . . Retrieved Components . | . . . Parts Scanalyzed . | . . . Part Schematics Acquired . | . . . Parts Damaged . | . . . Bothacking | -11 -10 -10 ------------ Run | Yrd Mat Sub Used RIF Installer . | . . . Robots Hacked . | . . . Non-combat . | . . . Combat . | . . . Robot Hacks Applied . | . . . Relay Couplers Released . | . . . Fabnet Peak Effective % . | . . . Robots Rewired . | . . . Allies Hacked . | . . . Hacks Repelled . | . . . Allies | -11 -10 -10 -------- Run | Yrd Mat Sub Total Allies . | . . . Largest Group . | . . . Highest-Rated Group . | . . . Highest-Rated Ally . | . . . Total Orders . | . . . Ally Attacks . | . . . Total Damage . | . . . Kills . | . . . Allies Corrupted . | . . . Allies Melted . | . . . Intel | -11 -10 -10 ------- Run | Yrd Mat Sub Active Infowar (turns) 813 | . 709 104 Sensors 523 | . 419 104 Structural 290 | . 290 . Robot Analysis Total 1 | . 1 . Derelict Logs Recovered 1 | . . 1 Drone Launches . | . . . Drone Recoveries . | . . . Exploration | -11 -10 -10 ------------- Run | Yrd Mat Sub Turns Passed 4963 | . 925 4038 Spaces Moved 3657 | 1 684 2972 Core 10 | . . 10 Treads . | . . . Legs 725 | 1 684 40 Wheels 2922 | . . 2922 Hover . | . . . Flight . | . . . Fastest Speed 110 | 120 120 110 Average Speed 120 | 120 120 120 Slowest Speed 500 | 120 120 500 Overloaded Moves . | . . . Propulsion Burnouts . | . . . Robots Hopped . | . . . Potential Cave-ins . | . . . Cave-ins Triggered . | . . . Exploration Rate (%) 65 | 3 98 95 Regions Visited 2 Branch Regions 1 Pre-discovered Areas . | . . . Known Exits Taken . | . . . Unknown Exits Taken 2 | 1 1 . Scrap Searched 4 | . . 4 Spaces Dug . | . . . Terrain Destroyed 32 | . 21 11 Melee . | . . . Projectile 1 | . . 1 AOE 31 | . 21 10 Terrain Rammed . | . . . Walls Destroyed . | . . . Machines Disabled . | . . . Actions | -11 -10 -10 --------- Run | Yrd Mat Sub Total 3960 | . 765 3195 Wait 70 | . 35 35 Move 3655 | . 683 2972 Hop . | . . . Pick Up 20 | . 9 11 Fast Attach 12 | . 2 10 Attach 2 | . . 2 Detach 2 | . . 2 Swap 28 | . 7 21 Drop 28 | . 9 19 Fire 124 | . 14 110 Melee . | . . . Ram . | . . . Kick 6 | . 6 . Crush . | . . . Escape Stasis . | . . . Rewire . | . . . Trap . | . . . Miscellaneous 13 | . . 13 Route ------- -11/Scrapyard -10/Materials (discovered 5 exits: [*Mat x3] / [*Min] / *Sub) -10/Subcaves (discovered 3 exits: [*Mat x2] / [*Rec]) History --------- Turn | Location | Event 1 | -11/Scrapyard | Discovered new exit (range 0) 1 | -11/Scrapyard | Entered Materials 139 | -10/Materials | Discovered new exit (range 3) 314 | -10/Materials | Build established: Mutant 344 | -10/Materials | Discovered new exit (range 14) 467 | -10/Materials | Repaired Aluminum Leg 632 | -10/Materials | Discovered new exit (range 5) 686 | -10/Materials | Discovered new exit (range 15) 915 | -10/Materials | Discovered new exit (range 9) 926 | -10/Materials | Entered Subcaves 997 | -10/Subcaves | Shifting Twisted Machinery released Scrap Shield 1128 | -10/Subcaves | Shifting Twisted Machinery released Sub. Power Source 1298 | -10/Subcaves | Shifting Twisted Machinery released Sub. Power Source 1414 | -10/Subcaves | Build established: Subdweller-Mutant 1546 | -10/Subcaves | Core integrity fell below 50% 1905 | -10/Subcaves | Disturbed a concealed Subdweller 1986 | -10/Subcaves | A swath of the cavern ceiling suddenly collapsed 2007 | -10/Subcaves | A swath of the cavern ceiling suddenly collapsed 2111 | -10/Subcaves | Visited 4L-MR0's lab 2138 | -10/Subcaves | Found Tower Shield 2139 | -10/Subcaves | Attached Tower Shield, gained temporary slots: Power, Propulsion x2, Utility x2, Weapon x2 2431 | -10/Subcaves | Build established: Subdweller-Tank 2778 | -10/Subcaves | Shifting Twisted Machinery released Piercing Trap 3081 | -10/Subcaves | Learned Materials emergency access door positions 3259 | -10/Subcaves | Discovered new exit (range 16) 4595 | -10/Subcaves | Discovered new exit (range 6) 4605 | -10/Subcaves | Ambushed by Subdwellers from Twisted Machinery 4813 | -10/Subcaves | Discovered new exit (range 3) 4821 | -10/Subcaves | Visited Clippyterm 4824 | -10/Subcaves | Learned Factory stockpile data 4824 | -10/Subcaves | Learned Factory garrison access intel 4961 | -10/Subcaves | Disturbed a concealed Subdweller 4964 | -10/Subcaves | Destroyed by 08-Q4D(R) with Subdweller Shrapnel Launcher Last Messages --------------- ancient AI. I give up. There must be something fundamentally wrong with the algorithm, because no matter how much data I collect to feed it, half the time it still manages to suggest unhelpful sample queries and responses. --DD-NU8 >>Record "Finders Keepers" It looks like you're interested in reappropriating Complex 0b10 components, would you like help? Data stored: Factory stockpile data. >>Record "Tag" It looks like you don't want to be "it," would you like help? Data stored: Factory garrison access intel. >>Record "LRC-V1" It looks like you're REDACTED, I can suggest REDACTED and REDACTED. Also definitely avoid REDACTED. >>Record "SUBCON Basin" It looks like you want to play with dangerous UFD tech. While I can't recommend taking subatomizers out of the Subcaves, I can warn that doing so is a one-way ticket to summoning unimaginable chaos on any area not hardened against them. That includes... just about anywhere. 04961_ 08-Q4D(R) angrily emerges from the Twisted Machinery. Map ----- +----------------------------------------------------+ | #" + ####?????????????????????????????????? | | #" ###########"#?????????????????????????????????? | | # ####???#### #?????????????????????????????????? | | #" % #####" & #?????????????????????????????????? | | # # ##?????????????????????????????????? | | ##" ##" #??????????????????????????????????? | | ?##"^"## "########??????????????????????????????? | | #######" #### ##?????????????????????????????? | | "### " ## #?????????????????????????????? | | "## # #?????????????????????????????? | | #" #"# ### #?????????????????????????????? | | #"#"## ##?##### #??????????? ????????????????? | | "############## ##?????????? ##?????????????? | | ###?##### ## #?????????? #?????????????? | | ##"""#" #?????????# ????????????? | | #???#" ##????????# ????????????? | | ?#### ### #######?######## ?????????????? | | ## # #?### #??????? ;# ??????????????? | | # #???####???????? &&;;# ???????????????? | | # #??????????????? R ;# #????????????????? | | ### #???????????????? ;# ##?###??? ?????? | | ??# ##??????????????? ; ## ### ??????? | | ### ######???????????;; ;; # ?????? | | # ## #???????????; ; #????? | | #???????????# #?????? | | #???????????#@ #?????????? | | ### ##???????????# # ##????? ?????? | | #?# #??????????? ###< #????#" ????? | | # ## ###??????????